[Event "Titled Tuesday Blitz March 28 Late 2023"]
[White "OKEKE, Isaac Chukwudalu"]
[Black "Przybylski, Wojciech"]
[WhiteFideId "8508526"]
[BlackFideId "1117599"]
[WhiteElo "2161"]
[BlackElo "2222"]
[Result "1-0"]
[Round "07"]
[TimeControl "180+2"]
[Date "2023.03.28"]
[WhiteClock "0:00:16"]
[BlackClock "0:00:01"]

1. e4 {[%clk 0:02:59]}  e5 {[%clk 0:02:57]} 2. Nf3 {[%clk 0:02:59]}  Nf6 {[%clk 0:02:57]} 3. Nxe5 {[%clk 0:02:58]}  d6 {[%clk 0:02:57]} 4. Nf3 {[%clk 0:02:58]}  Nxe4 {[%clk 0:02:58]} 5. Nc3 {[%clk 0:02:58]}  Nxc3 {[%clk 0:02:58]} 6. dxc3 {[%clk 0:02:58]}  Be7 {[%clk 0:02:59]} 7. Be3 {[%clk 0:02:57]}  O-O {[%clk 0:02:59]} 8. Qd2 {[%clk 0:02:57]}  Nd7 {[%clk 0:03:00]} 9. O-O-O {[%clk 0:02:58]}  Ne5 {[%clk 0:03:01]} 10. Nxe5 {[%clk 0:02:50]}  dxe5 {[%clk 0:03:00]} 11. Qxd8 {[%clk 0:02:47]}  Rxd8 {[%clk 0:03:00]} 12. Rxd8+ {[%clk 0:02:47]}  Bxd8 {[%clk 0:03:00]} 13. Bc4 {[%clk 0:02:47]}  Be7 {[%clk 0:02:54]} 14. Rd1 {[%clk 0:02:45]}  Bf5 {[%clk 0:02:48]} 15. Bd5 {[%clk 0:02:43]}  c6 {[%clk 0:02:47]} 16. Bc4 {[%clk 0:02:40]}  Kf8 {[%clk 0:02:41]} 17. a4 {[%clk 0:02:39]}  h5 {[%clk 0:02:36]} 18. h3 {[%clk 0:02:12]}  h4 {[%clk 0:02:33]} 19. f3 {[%clk 0:02:00]}  g5 {[%clk 0:02:28]} 20. b3 {[%clk 0:01:54]}  Kg7 {[%clk 0:02:16]} 21. Kb2 {[%clk 0:01:47]}  a6 {[%clk 0:02:12]} 22. a5 {[%clk 0:01:46]}  Bc8 {[%clk 0:02:07]} 23. b4 {[%clk 0:01:30]}  f5 {[%clk 0:02:06]} 24. Bc5 {[%clk 0:01:27]}  Kf6 {[%clk 0:02:04]} 25. Bxe7+ {[%clk 0:01:13]}  Kxe7 {[%clk 0:02:03]} 26. Re1 {[%clk 0:01:14]}  Kf6 {[%clk 0:01:55]} 27. Rd1 {[%clk 0:01:14]}  Be6 {[%clk 0:01:51]} 28. Rd6 {[%clk 0:01:11]}  Re8 {[%clk 0:01:51]} 29. Kc1 {[%clk 0:01:08]}  Kf7 {[%clk 0:00:59]} 30. Rd7+ {[%clk 0:01:03]}  Re7 {[%clk 0:00:59]} 31. Bxe6+ {[%clk 0:00:59]}  Kxe6 {[%clk 0:00:59]} 32. Rd8 {[%clk 0:00:57]}  Rg7 {[%clk 0:00:41]} 33. Re8+ {[%clk 0:00:54]}  Kd5 {[%clk 0:00:41]} 34. Kd2 {[%clk 0:00:53]}  g4 {[%clk 0:00:38]} 35. fxg4 {[%clk 0:00:50]}  fxg4 {[%clk 0:00:38]} 36. Rh8 {[%clk 0:00:47]}  gxh3 {[%clk 0:00:35]} 37. gxh3 {[%clk 0:00:48]}  Rg2+ {[%clk 0:00:34]} 38. Kd1 {[%clk 0:00:41]}  Kc4 {[%clk 0:00:24]} 39. Rxh4+ {[%clk 0:00:35]}  Kxc3 {[%clk 0:00:25]} 40. Re4 {[%clk 0:00:36]}  Rd2+ {[%clk 0:00:20]} 41. Ke1 {[%clk 0:00:35]}  Rh2 {[%clk 0:00:19]} 42. Rxe5 {[%clk 0:00:34]}  Rxh3 {[%clk 0:00:14]} 43. Re7 {[%clk 0:00:31]}  Rh4 {[%clk 0:00:14]} 44. Rxb7 {[%clk 0:00:30]}  Rxb4 {[%clk 0:00:13]} 45. Rb6 {[%clk 0:00:27]}  Re4+ {[%clk 0:00:03]} 46. Kd1 {[%clk 0:00:25]}  Ra4 {[%clk 0:00:02]} 47. Rxc6+ {[%clk 0:00:24]}  Kb4 {[%clk 0:00:03]} 48. Rxa6 {[%clk 0:00:24]}  Kb5 {[%clk 0:00:03]} 49. Ra8 {[%clk 0:00:24]}  Rd4+ {[%clk 0:00:03]} 50. Kc1 {[%clk 0:00:24]}  Rh4 {[%clk 0:00:03]} 51. a6 {[%clk 0:00:22]}  Kb6 {[%clk 0:00:02]} 52. Kb2 {[%clk 0:00:22]}  Rb4+ {[%clk 0:00:02]} 53. Kc3 {[%clk 0:00:22]}  Rh4 {[%clk 0:00:03]} 54. Kb3 {[%clk 0:00:22]}  Rg4 {[%clk 0:00:03]} 55. c4 {[%clk 0:00:21]}  Rg1 {[%clk 0:00:03]} 56. Kc2 {[%clk 0:00:17]}  Rg2+ {[%clk 0:00:03]} 57. Kc3 {[%clk 0:00:17]}  Rg1 {[%clk 0:00:03]} 58. Rb8+ {[%clk 0:00:17]}  Kxa6 {[%clk 0:00:03]} 59. Rb2 {[%clk 0:00:17]}  Rc1+ {[%clk 0:00:02]} 60. Kd4 {[%clk 0:00:16]}  Ka7 {[%clk 0:00:02]} 61. Kd5 {[%clk 0:00:16]}  Rd1+ {[%clk 0:00:02]} 62. Kc6 {[%clk 0:00:16]}  Rd8 {[%clk 0:00:02]} 63. Kc7 {[%clk 0:00:16]}  Rh8 {[%clk 0:00:01]} 64. Ra2# {[%clk 0:00:16]} 1-0


[Site "https://www.chess.com"]

[Event "Titled Tuesday Blitz March 28 Late 2023"]
[White "Mendez Machado, Andre"]
[Black "Buchenau, Frank"]
[WhiteFideId "6603793"]
[BlackFideId "4604350"]
[WhiteElo "1984"]
[BlackElo "2157"]
[Result "0-1"]
[Round "07"]
[TimeControl "180+2"]
[Date "2023.03.28"]
[WhiteClock "0:00:17"]
[BlackClock "0:00:41"]

1. e4 {[%clk 0:03:00]}  e6 {[%clk 0:02:51]} 2. d4 {[%clk 0:03:00]}  d5 {[%clk 0:02:51]} 3. Nd2 {[%clk 0:03:01]}  c5 {[%clk 0:02:50]} 4. exd5 {[%clk 0:03:01]}  Qxd5 {[%clk 0:02:49]} 5. Ngf3 {[%clk 0:03:00]}  cxd4 {[%clk 0:02:49]} 6. Bc4 {[%clk 0:03:00]}  Qd6 {[%clk 0:02:49]} 7. O-O {[%clk 0:03:00]}  Nf6 {[%clk 0:02:49]} 8. Re1 {[%clk 0:03:01]}  Nc6 {[%clk 0:02:48]} 9. Nb3 {[%clk 0:03:01]}  a6 {[%clk 0:02:38]} 10. Nbxd4 {[%clk 0:02:54]}  Nxd4 {[%clk 0:02:37]} 11. Nxd4 {[%clk 0:02:55]}  Qc7 {[%clk 0:02:35]} 12. Qd3 {[%clk 0:01:51]}  b5 {[%clk 0:02:27]} 13. Bxe6 {[%clk 0:01:24]}  fxe6 {[%clk 0:02:25]} 14. Nxe6 {[%clk 0:01:23]}  Bxe6 {[%clk 0:02:24]} 15. Rxe6+ {[%clk 0:01:24]}  Kf7 {[%clk 0:02:22]} 16. Re1 {[%clk 0:01:16]}  Rd8 {[%clk 0:02:17]} 17. Qf3 {[%clk 0:01:12]}  Be7 {[%clk 0:02:00]} 18. Bf4 {[%clk 0:01:10]}  Qa7 {[%clk 0:01:42]} 19. Qb3+ {[%clk 0:01:06]}  Rd5 {[%clk 0:01:36]} 20. a4 {[%clk 0:00:58]}  b4 {[%clk 0:01:29]} 21. Rad1 {[%clk 0:00:51]}  Rd8 {[%clk 0:01:29]} 22. Re5 {[%clk 0:00:47]}  Qa8 {[%clk 0:01:12]} 23. Rde1 {[%clk 0:00:41]}  Bd6 {[%clk 0:01:02]} 24. Rxd5 {[%clk 0:00:40]}  Qxd5 {[%clk 0:01:02]} 25. Qg3 {[%clk 0:00:31]}  Nh5 {[%clk 0:00:54]} 26. Qh4 {[%clk 0:00:25]}  Nxf4 {[%clk 0:00:53]} 27. f3 {[%clk 0:00:17]}  Qd2 {[%clk 0:00:41]} 0-1


[Site "https://www.chess.com"]

[Event "Titled Tuesday Blitz March 28 Late 2023"]
[White "ritanovikova"]
[Black "sissahungrychess"]
[WhiteElo "2226"]
[BlackElo "2386"]
[Result "0-1"]
[Round "07"]
[TimeControl "180+2"]
[Date "2023.03.28"]
[WhiteClock "0:00:15"]
[BlackClock "0:00:15"]

1. e4 {[%clk 0:02:59]}  c5 {[%clk 0:02:58]} 2. Nc3 {[%clk 0:02:59]}  Nc6 {[%clk 0:02:58]} 3. d3 {[%clk 0:02:59]}  g6 {[%clk 0:02:58]} 4. Be3 {[%clk 0:02:59]}  d6 {[%clk 0:02:58]} 5. Qd2 {[%clk 0:02:59]}  Rb8 {[%clk 0:02:58]} 6. g3 {[%clk 0:02:59]}  b5 {[%clk 0:02:58]} 7. Bg2 {[%clk 0:02:59]}  b4 {[%clk 0:02:59]} 8. Nd1 {[%clk 0:02:59]}  Bg7 {[%clk 0:02:59]} 9. h4 {[%clk 0:02:59]}  h6 {[%clk 0:02:58]} 10. f4 {[%clk 0:02:55]}  a5 {[%clk 0:02:55]} 11. h5 {[%clk 0:02:54]}  Bg4 {[%clk 0:02:42]} 12. hxg6 {[%clk 0:02:50]}  fxg6 {[%clk 0:02:43]} 13. Nf2 {[%clk 0:02:49]}  Be6 {[%clk 0:02:43]} 14. c3 {[%clk 0:02:46]}  bxc3 {[%clk 0:02:42]} 15. bxc3 {[%clk 0:02:46]}  Qb6 {[%clk 0:02:39]} 16. d4 {[%clk 0:02:37]}  cxd4 {[%clk 0:02:35]} 17. cxd4 {[%clk 0:02:35]}  Bxd4 {[%clk 0:02:26]} 18. Bxd4 {[%clk 0:02:27]}  Qxd4 {[%clk 0:02:25]} 19. Qxd4 {[%clk 0:02:22]}  Nxd4 {[%clk 0:02:26]} 20. O-O-O {[%clk 0:02:03]}  Rc8+ {[%clk 0:02:15]} 21. Kb1 {[%clk 0:02:00]}  Nc2 {[%clk 0:02:11]} 22. Bf3 {[%clk 0:01:35]}  Nf6 {[%clk 0:02:05]} 23. Rd2 {[%clk 0:01:27]}  Na3+ {[%clk 0:01:59]} 24. Ka1 {[%clk 0:01:24]}  Rc3 {[%clk 0:01:48]} 25. Kb2 {[%clk 0:01:22]}  Re3 {[%clk 0:01:40]} 26. Rd3 {[%clk 0:01:16]}  Nc4+ {[%clk 0:01:37]} 27. Kc3 {[%clk 0:01:14]}  Rxd3+ {[%clk 0:01:17]} 28. Nxd3 {[%clk 0:01:14]}  Nb6 {[%clk 0:01:00]} 29. Kb2 {[%clk 0:01:10]}  Bc4 {[%clk 0:00:48]} 30. Nc1 {[%clk 0:01:06]}  Kf7 {[%clk 0:00:48]} 31. Nge2 {[%clk 0:01:01]}  Rb8 {[%clk 0:00:45]} 32. Kc3 {[%clk 0:00:54]}  h5 {[%clk 0:00:39]} 33. Nd4 {[%clk 0:00:38]}  Rc8 {[%clk 0:00:35]} 34. Kd2 {[%clk 0:00:36]}  e5 {[%clk 0:00:35]} 35. fxe5 {[%clk 0:00:35]}  dxe5 {[%clk 0:00:36]} 36. Ndb3 {[%clk 0:00:35]}  a4 {[%clk 0:00:35]} 37. Na5 {[%clk 0:00:32]}  Ba6 {[%clk 0:00:30]} 38. Be2 {[%clk 0:00:29]}  Nxe4+ {[%clk 0:00:24]} 39. Ke3 {[%clk 0:00:27]}  Nxg3 {[%clk 0:00:23]} 40. Rg1 {[%clk 0:00:25]}  Nxe2 {[%clk 0:00:22]} 41. Nxe2 {[%clk 0:00:25]}  Rc5 {[%clk 0:00:23]} 42. Nb3 {[%clk 0:00:20]}  axb3 {[%clk 0:00:22]} 43. axb3 {[%clk 0:00:21]}  Nd5+ {[%clk 0:00:21]} 44. Kd2 {[%clk 0:00:19]}  Nf4 {[%clk 0:00:18]} 45. Nc3 {[%clk 0:00:19]}  Rc7 {[%clk 0:00:17]} 46. Ne4 {[%clk 0:00:19]}  Rd7+ {[%clk 0:00:16]} 47. Ke3 {[%clk 0:00:19]}  Bb7 {[%clk 0:00:16]} 48. Ng5+ {[%clk 0:00:18]}  Kf6 {[%clk 0:00:16]} 49. Nf3 {[%clk 0:00:16]}  Rd3+ {[%clk 0:00:16]} 50. Kf2 {[%clk 0:00:15]}  Rxf3+ {[%clk 0:00:17]} 51. Ke1 {[%clk 0:00:15]}  Rxb3 {[%clk 0:00:17]} 52. Kd2 {[%clk 0:00:16]}  Be4 {[%clk 0:00:16]} 53. Rg3 {[%clk 0:00:15]}  Rxg3 {[%clk 0:00:15]} 0-1


[Site "https://www.chess.com"]

[Event "Titled Tuesday Blitz March 28 Late 2023"]
[White "Bouget, Alexandre"]
[Black "Svicevic, Rastko"]
[WhiteFideId "681318"]
[BlackFideId "916315"]
[WhiteElo "2177"]
[BlackElo "2071"]
[Result "0-1"]
[Round "07"]
[TimeControl "180+2"]
[Date "2023.03.28"]
[WhiteClock "0:00:01"]
[BlackClock "0:00:08"]

1. Nc3 {[%clk 0:02:50]}  c6 {[%clk 0:03:00]} 2. e4 {[%clk 0:02:47]}  d5 {[%clk 0:03:01]} 3. Nf3 {[%clk 0:02:45]}  g6 {[%clk 0:02:54]} 4. d3 {[%clk 0:02:37]}  Bg7 {[%clk 0:02:53]} 5. Be2 {[%clk 0:02:32]}  Bg4 {[%clk 0:02:47]} 6. O-O {[%clk 0:02:32]}  Nf6 {[%clk 0:02:18]} 7. e5 {[%clk 0:02:30]}  Nfd7 {[%clk 0:02:15]} 8. d4 {[%clk 0:02:31]}  O-O {[%clk 0:02:12]} 9. Ng5 {[%clk 0:02:21]}  Bxe2 {[%clk 0:02:11]} 10. Qxe2 {[%clk 0:02:22]}  e6 {[%clk 0:02:09]} 11. Qg4 {[%clk 0:02:17]}  h6 {[%clk 0:02:06]} 12. Nh3 {[%clk 0:02:12]}  c5 {[%clk 0:02:05]} 13. f4 {[%clk 0:02:07]}  cxd4 {[%clk 0:02:04]} 14. Nb5 {[%clk 0:02:05]}  d3 {[%clk 0:01:51]} 15. Be3 {[%clk 0:01:50]}  dxc2 {[%clk 0:01:49]} 16. Rac1 {[%clk 0:01:49]}  Nc6 {[%clk 0:01:44]} 17. Rxc2 {[%clk 0:01:47]}  a6 {[%clk 0:01:24]} 18. Nd6 {[%clk 0:01:46]}  d4 {[%clk 0:01:23]} 19. Bf2 {[%clk 0:01:40]}  d3 {[%clk 0:01:13]} 20. Rd2 {[%clk 0:01:34]}  Qa5 {[%clk 0:01:12]} 21. Rfd1 {[%clk 0:01:28]}  Ndxe5 {[%clk 0:01:03]} 22. Qg3 {[%clk 0:01:17]}  Qxa2 {[%clk 0:00:46]} 23. fxe5 {[%clk 0:01:13]}  Bxe5 {[%clk 0:00:47]} 24. Qxd3 {[%clk 0:01:13]}  Rad8 {[%clk 0:00:41]} 25. Qe3 {[%clk 0:01:13]}  Bg7 {[%clk 0:00:21]} 26. Nxb7 {[%clk 0:00:58]}  Rb8 {[%clk 0:00:20]} 27. Nd6 {[%clk 0:00:49]}  Rxb2 {[%clk 0:00:20]} 28. Rxb2 {[%clk 0:00:45]}  Qxb2 {[%clk 0:00:20]} 29. Ne4 {[%clk 0:00:36]}  Ne5 {[%clk 0:00:18]} 30. Nf4 {[%clk 0:00:33]}  Ng4 {[%clk 0:00:18]} 31. Qf3 {[%clk 0:00:32]}  Nxf2 {[%clk 0:00:18]} 32. Qxf2 {[%clk 0:00:31]}  Qb4 {[%clk 0:00:17]} 33. Ng3 {[%clk 0:00:25]}  a5 {[%clk 0:00:17]} 34. Nge2 {[%clk 0:00:21]}  a4 {[%clk 0:00:16]} 35. Nd3 {[%clk 0:00:15]}  Qb5 {[%clk 0:00:14]} 36. Qc5 {[%clk 0:00:14]}  Qb3 {[%clk 0:00:14]} 37. Qc1 {[%clk 0:00:08]}  a3 {[%clk 0:00:13]} 38. Nc5 {[%clk 0:00:09]}  Qb6 {[%clk 0:00:12]} 39. Kh1 {[%clk 0:00:08]}  a2 {[%clk 0:00:10]} 40. Qa3 {[%clk 0:00:06]}  a1=Q {[%clk 0:00:08]} 41. Rxa1 {[%clk 0:00:06]}  Bxa1 {[%clk 0:00:09]} 42. Qxa1 {[%clk 0:00:06]}  Qxc5 {[%clk 0:00:09]} 43. Qf1 {[%clk 0:00:07]}  Rc8 {[%clk 0:00:07]} 44. h3 {[%clk 0:00:07]}  Qc4 {[%clk 0:00:07]} 45. Kh2 {[%clk 0:00:07]}  Rd8 {[%clk 0:00:07]} 46. Qf6 {[%clk 0:00:06]}  Qc7+ {[%clk 0:00:05]} 47. Ng3 {[%clk 0:00:05]}  Ra8 {[%clk 0:00:05]} 48. h4 {[%clk 0:00:04]}  Ra3 {[%clk 0:00:05]} 49. Qf2 {[%clk 0:00:01]}  Qxg3+ {[%clk 0:00:04]} 50. Qxg3 {[%clk 0:00:01]}  Rxg3 {[%clk 0:00:05]} 51. Kxg3 {[%clk 0:00:02]}  Kg7 {[%clk 0:00:05]} 52. Kg4 {[%clk 0:00:03]}  f5+ {[%clk 0:00:05]} 53. Kf4 {[%clk 0:00:02]}  Kf6 {[%clk 0:00:06]} 54. h5 {[%clk 0:00:03]}  e5+ {[%clk 0:00:07]} 55. Kf3 {[%clk 0:00:03]}  g5 {[%clk 0:00:08]} 56. g4 {[%clk 0:00:02]}  e4+ {[%clk 0:00:09]} 57. Kg3 {[%clk 0:00:01]}  f4+ {[%clk 0:00:08]} 0-1


[Site "https://www.chess.com"]

[Event "Titled Tuesday Blitz March 28 Late 2023"]
[White "Guzman Moneo, Alberto"]
[Black "Manu_ChessExcelsior"]
[WhiteFideId "2209616"]
[WhiteElo "2157"]
[BlackElo "2113"]
[Result "1-0"]
[Round "07"]
[TimeControl "180+2"]
[Date "2023.03.28"]
[WhiteClock "0:00:47"]
[BlackClock "0:00:05"]

1. e4 {[%clk 0:02:59]}  c5 {[%clk 0:02:58]} 2. Nc3 {[%clk 0:02:59]}  Nc6 {[%clk 0:02:57]} 3. Bb5 {[%clk 0:02:59]}  Nd4 {[%clk 0:02:50]} 4. Nf3 {[%clk 0:02:58]}  Nxb5 {[%clk 0:02:47]} 5. Nxb5 {[%clk 0:02:59]}  a6 {[%clk 0:02:47]} 6. Nc3 {[%clk 0:02:59]}  g6 {[%clk 0:02:43]} 7. d4 {[%clk 0:02:59]}  d6 {[%clk 0:02:09]} 8. dxc5 {[%clk 0:02:58]}  dxc5 {[%clk 0:02:10]} 9. Qxd8+ {[%clk 0:02:58]}  Kxd8 {[%clk 0:02:11]} 10. Be3 {[%clk 0:02:55]}  e6 {[%clk 0:01:57]} 11. O-O-O+ {[%clk 0:02:54]}  Ke8 {[%clk 0:01:49]} 12. Na4 {[%clk 0:02:50]}  Nf6 {[%clk 0:01:26]} 13. Bg5 {[%clk 0:02:31]}  Nd7 {[%clk 0:00:42]} 14. Ne5 {[%clk 0:02:25]}  Be7 {[%clk 0:00:42]} 15. Bxe7 {[%clk 0:02:21]}  Kxe7 {[%clk 0:00:38]} 16. Nxd7 {[%clk 0:02:16]}  Bxd7 {[%clk 0:00:38]} 17. Nxc5 {[%clk 0:02:13]}  Bc6 {[%clk 0:00:39]} 18. f3 {[%clk 0:02:11]}  Rac8 {[%clk 0:00:37]} 19. Rd2 {[%clk 0:02:02]}  f5 {[%clk 0:00:32]} 20. exf5 {[%clk 0:02:00]}  exf5 {[%clk 0:00:30]} 21. Re1+ {[%clk 0:01:59]}  Kf6 {[%clk 0:00:31]} 22. h4 {[%clk 0:01:45]}  Rhe8 {[%clk 0:00:28]} 23. Rxe8 {[%clk 0:01:36]}  Rxe8 {[%clk 0:00:28]} 24. Nd7+ {[%clk 0:01:36]}  Kg7 {[%clk 0:00:26]} 25. c3 {[%clk 0:01:15]}  Re7 {[%clk 0:00:16]} 26. Nc5 {[%clk 0:01:12]}  Re1+ {[%clk 0:00:14]} 27. Kc2 {[%clk 0:01:09]}  Rh1 {[%clk 0:00:15]} 28. Ne6+ {[%clk 0:01:05]}  Kf6 {[%clk 0:00:14]} 29. Nd8 {[%clk 0:01:03]}  Bb5 {[%clk 0:00:10]} 30. Nxb7 {[%clk 0:00:57]}  Rxh4 {[%clk 0:00:10]} 31. Nd6 {[%clk 0:00:56]}  Bc6 {[%clk 0:00:08]} 32. b3 {[%clk 0:00:52]}  Rh2 {[%clk 0:00:07]} 33. c4 {[%clk 0:00:51]}  h5 {[%clk 0:00:07]} 34. b4 {[%clk 0:00:46]}  h4 {[%clk 0:00:06]} 35. b5 {[%clk 0:00:47]}  axb5 {[%clk 0:00:05]} 36. cxb5 {[%clk 0:00:47]} 1-0


[Site "https://www.chess.com"]

[Event "Titled Tuesday Blitz March 28 Late 2023"]
[White "Matute Escobar, Roxanny"]
[Black "Torres Boch, Jose Francisco"]
[WhiteFideId "3926028"]
[BlackFideId "2278383"]
[WhiteElo "1732"]
[BlackElo "2073"]
[Result "0-1"]
[Round "07"]
[TimeControl "180+2"]
[Date "2023.03.28"]
[WhiteClock "0:00:02"]
[BlackClock "0:00:09"]

1. e4 {[%clk 0:03:00]}  c5 {[%clk 0:02:58]} 2. Nf3 {[%clk 0:03:00]}  d6 {[%clk 0:02:57]} 3. d4 {[%clk 0:03:00]}  cxd4 {[%clk 0:02:58]} 4. Nxd4 {[%clk 0:03:00]}  Nf6 {[%clk 0:02:59]} 5. Nc3 {[%clk 0:03:00]}  a6 {[%clk 0:02:59]} 6. Be3 {[%clk 0:03:00]}  e5 {[%clk 0:03:00]} 7. Nb3 {[%clk 0:03:00]}  Be7 {[%clk 0:03:00]} 8. f3 {[%clk 0:03:00]}  Be6 {[%clk 0:03:00]} 9. Qd2 {[%clk 0:03:00]}  h5 {[%clk 0:03:00]} 10. O-O-O {[%clk 0:03:00]}  Nbd7 {[%clk 0:03:01]} 11. Kb1 {[%clk 0:03:00]}  b5 {[%clk 0:03:01]} 12. h3 {[%clk 0:02:57]}  h4 {[%clk 0:03:00]} 13. f4 {[%clk 0:02:56]}  exf4 {[%clk 0:02:55]} 14. Bxf4 {[%clk 0:02:56]}  Ne5 {[%clk 0:02:56]} 15. Nd5 {[%clk 0:02:41]}  Nxe4 {[%clk 0:02:48]} 16. Qe3 {[%clk 0:02:21]}  Bxd5 {[%clk 0:02:38]} 17. Rxd5 {[%clk 0:02:20]}  Nf6 {[%clk 0:02:38]} 18. Rd1 {[%clk 0:02:13]}  Qc7 {[%clk 0:02:20]} 19. Nd4 {[%clk 0:02:08]}  Nd5 {[%clk 0:02:15]} 20. Qe4 {[%clk 0:02:08]}  Nb6 {[%clk 0:01:34]} 21. Nf5 {[%clk 0:01:44]}  O-O {[%clk 0:01:33]} 22. Bxe5 {[%clk 0:01:21]}  dxe5 {[%clk 0:01:31]} 23. Bd3 {[%clk 0:01:20]}  g6 {[%clk 0:01:31]} 24. Nxh4 {[%clk 0:01:01]}  Bxh4 {[%clk 0:01:29]} 25. Qxh4 {[%clk 0:01:00]}  Qd8 {[%clk 0:01:26]} 26. Qh6 {[%clk 0:00:58]}  Qf6 {[%clk 0:01:24]} 27. Rhf1 {[%clk 0:00:58]}  Qg7 {[%clk 0:01:25]} 28. Qe3 {[%clk 0:00:58]}  Nd5 {[%clk 0:01:21]} 29. Qf3 {[%clk 0:00:55]}  Nf4 {[%clk 0:01:21]} 30. Be4 {[%clk 0:00:55]}  Rad8 {[%clk 0:01:16]} 31. g3 {[%clk 0:00:50]}  Ne6 {[%clk 0:01:03]} 32. c3 {[%clk 0:00:42]}  Ng5 {[%clk 0:00:56]} 33. Qe3 {[%clk 0:00:42]}  Nxe4 {[%clk 0:00:55]} 34. Qxe4 {[%clk 0:00:43]}  f5 {[%clk 0:00:50]} 35. Qc6 {[%clk 0:00:38]}  e4 {[%clk 0:00:43]} 36. Qe6+ {[%clk 0:00:36]}  Qf7 {[%clk 0:00:40]} 37. Qb6 {[%clk 0:00:21]}  Rb8 {[%clk 0:00:38]} 38. Qc6 {[%clk 0:00:16]}  Rbc8 {[%clk 0:00:37]} 39. Qb6 {[%clk 0:00:12]}  Rb8 {[%clk 0:00:18]} 40. Qe3 {[%clk 0:00:11]}  Rfd8 {[%clk 0:00:17]} 41. Qg5 {[%clk 0:00:10]}  Qe8 {[%clk 0:00:14]} 42. g4 {[%clk 0:00:07]}  e3 {[%clk 0:00:13]} 43. Rxd8 {[%clk 0:00:07]}  Rxd8 {[%clk 0:00:14]} 44. Re1 {[%clk 0:00:07]}  e2 {[%clk 0:00:14]} 45. Kc2 {[%clk 0:00:06]}  Qe4+ {[%clk 0:00:14]} 46. Kb3 {[%clk 0:00:06]}  Rd1 {[%clk 0:00:12]} 47. Qxg6+ {[%clk 0:00:06]}  Kf8 {[%clk 0:00:11]} 48. Qf6+ {[%clk 0:00:06]}  Ke8 {[%clk 0:00:11]} 49. Qh8+ {[%clk 0:00:06]}  Ke7 {[%clk 0:00:11]} 50. Qg7+ {[%clk 0:00:06]}  Ke6 {[%clk 0:00:11]} 51. Qg8+ {[%clk 0:00:05]}  Ke5 {[%clk 0:00:11]} 52. Qe8+ {[%clk 0:00:05]}  Kf4 {[%clk 0:00:11]} 53. Qb8+ {[%clk 0:00:06]}  Kf3 {[%clk 0:00:10]} 54. Rxe2 {[%clk 0:00:02]}  Qxe2 {[%clk 0:00:09]} 55. gxf5 {[%clk 0:00:02]}  Qc4+ {[%clk 0:00:09]} 56. Ka3 {[%clk 0:00:02]}  Qa4# {[%clk 0:00:09]} 0-1


[Site "https://www.chess.com"]

[Event "Titled Tuesday Blitz March 28 Late 2023"]
[White "Oliveira, Tiago Batista"]
[Black "micke12a"]
[WhiteFideId "2108291"]
[WhiteElo "1962"]
[BlackElo "2320"]
[Result "0-1"]
[Round "07"]
[TimeControl "180+2"]
[Date "2023.03.28"]
[WhiteClock "0:00:56"]
[BlackClock "0:00:50"]

1. d4 {[%clk 0:02:58]}  Nf6 {[%clk 0:02:59]} 2. c4 {[%clk 0:02:59]}  g6 {[%clk 0:03:00]} 3. Nc3 {[%clk 0:02:56]}  d5 {[%clk 0:03:00]} 4. cxd5 {[%clk 0:02:56]}  Nxd5 {[%clk 0:03:01]} 5. e4 {[%clk 0:02:56]}  Nxc3 {[%clk 0:03:02]} 6. bxc3 {[%clk 0:02:56]}  Bg7 {[%clk 0:03:02]} 7. Be3 {[%clk 0:02:57]}  c5 {[%clk 0:02:59]} 8. Rc1 {[%clk 0:02:56]}  Qa5 {[%clk 0:02:59]} 9. Qd2 {[%clk 0:02:54]}  O-O {[%clk 0:03:00]} 10. d5 {[%clk 0:02:49]}  b6 {[%clk 0:02:56]} 11. c4 {[%clk 0:02:49]}  Qxd2+ {[%clk 0:02:56]} 12. Kxd2 {[%clk 0:02:49]}  f5 {[%clk 0:02:53]} 13. f3 {[%clk 0:02:33]}  e6 {[%clk 0:02:44]} 14. Bd3 {[%clk 0:02:31]}  Rd8 {[%clk 0:02:28]} 15. Bg5 {[%clk 0:02:27]}  Rd6 {[%clk 0:02:21]} 16. Be7 {[%clk 0:02:18]}  Rd7 {[%clk 0:02:18]} 17. Bh4 {[%clk 0:02:08]}  exd5 {[%clk 0:02:11]} 18. cxd5 {[%clk 0:02:02]}  Ba6 {[%clk 0:02:06]} 19. Bc2 {[%clk 0:01:54]}  fxe4 {[%clk 0:01:41]} 20. Bxe4 {[%clk 0:01:39]}  Bh6+ {[%clk 0:01:40]} 21. Kc2 {[%clk 0:01:39]}  Bxc1 {[%clk 0:01:40]} 22. Kxc1 {[%clk 0:01:39]}  Bb7 {[%clk 0:01:40]} 23. Ne2 {[%clk 0:01:29]}  Na6 {[%clk 0:01:33]} 24. Rd1 {[%clk 0:01:23]}  Nb4 {[%clk 0:01:30]} 25. Nc3 {[%clk 0:01:21]}  Kg7 {[%clk 0:01:19]} 26. a3 {[%clk 0:01:18]}  Na6 {[%clk 0:01:18]} 27. Bg3 {[%clk 0:01:17]}  Re8 {[%clk 0:01:14]} 28. Nb5 {[%clk 0:01:11]}  c4 {[%clk 0:00:59]} 29. Be1 {[%clk 0:01:05]}  Nc5 {[%clk 0:00:56]} 30. Bc3+ {[%clk 0:01:05]}  Kg8 {[%clk 0:00:54]} 31. Rd4 {[%clk 0:01:00]}  Nb3+ {[%clk 0:00:52]} 32. Kc2 {[%clk 0:00:55]}  Nxd4+ {[%clk 0:00:51]} 33. Bxd4 {[%clk 0:00:56]}  Bxd5 {[%clk 0:00:50]} 0-1


[Site "https://www.chess.com"]

[Event "Titled Tuesday Blitz March 28 Late 2023"]
[White "Pirvulescu, Ekaterina"]
[Black "Santos Flores, Alberto"]
[WhiteFideId "13506374"]
[BlackFideId "3601234"]
[WhiteElo "2006"]
[BlackElo "2235"]
[Result "0-1"]
[Round "07"]
[TimeControl "180+2"]
[Date "2023.03.28"]
[WhiteClock "0:00:06"]
[BlackClock "0:00:25"]

1. e4 {[%clk 0:02:59]}  c5 {[%clk 0:02:59]} 2. Nc3 {[%clk 0:02:58]}  g6 {[%clk 0:02:59]} 3. f4 {[%clk 0:02:58]}  Bg7 {[%clk 0:03:00]} 4. Nf3 {[%clk 0:02:59]}  Nc6 {[%clk 0:03:00]} 5. Bb5 {[%clk 0:02:59]}  Nd4 {[%clk 0:03:00]} 6. O-O {[%clk 0:02:58]}  e6 {[%clk 0:03:00]} 7. e5 {[%clk 0:02:54]}  a6 {[%clk 0:02:59]} 8. Bd3 {[%clk 0:02:44]}  d6 {[%clk 0:02:58]} 9. Nxd4 {[%clk 0:02:35]}  cxd4 {[%clk 0:02:56]} 10. Ne4 {[%clk 0:02:35]}  dxe5 {[%clk 0:02:56]} 11. fxe5 {[%clk 0:02:36]}  Bxe5 {[%clk 0:02:56]} 12. Qf3 {[%clk 0:02:31]}  f5 {[%clk 0:02:55]} 13. Nc5 {[%clk 0:02:00]}  Qc7 {[%clk 0:02:43]} 14. Ne4 {[%clk 0:01:34]}  Nf6 {[%clk 0:02:40]} 15. Ng5 {[%clk 0:01:18]}  O-O {[%clk 0:02:33]} 16. Re1 {[%clk 0:01:13]}  Bxh2+ {[%clk 0:02:32]} 17. Kh1 {[%clk 0:01:13]}  e5 {[%clk 0:01:36]} 18. Qh3 {[%clk 0:00:44]}  Bf4 {[%clk 0:01:31]} 19. Qh4 {[%clk 0:00:28]}  Bxg5 {[%clk 0:01:14]} 20. Qxg5 {[%clk 0:00:27]}  e4 {[%clk 0:01:14]} 21. Be2 {[%clk 0:00:23]}  Kg7 {[%clk 0:01:08]} 22. b3 {[%clk 0:00:24]}  h6 {[%clk 0:01:08]} 23. Qh4 {[%clk 0:00:20]}  Qxc2 {[%clk 0:00:50]} 24. d3 {[%clk 0:00:17]}  e3 {[%clk 0:00:49]} 25. Qxd4 {[%clk 0:00:16]}  Be6 {[%clk 0:00:31]} 26. Qxe3 {[%clk 0:00:15]}  Rae8 {[%clk 0:00:30]} 27. Qxh6+ {[%clk 0:00:15]}  Kf7 {[%clk 0:00:30]} 28. Bg5 {[%clk 0:00:12]}  Rh8 {[%clk 0:00:29]} 29. Qxh8 {[%clk 0:00:08]}  Rxh8+ {[%clk 0:00:29]} 30. Kg1 {[%clk 0:00:09]}  Bd5 {[%clk 0:00:27]} 31. Bxf6 {[%clk 0:00:08]}  Kxf6 {[%clk 0:00:27]} 32. Rac1 {[%clk 0:00:09]}  Qxa2 {[%clk 0:00:27]} 33. Ra1 {[%clk 0:00:06]}  Qb2 {[%clk 0:00:25]} 34. Rab1 {[%clk 0:00:06]}  Qd4+ {[%clk 0:00:25]} 0-1


[Site "https://www.chess.com"]